bitfinex/quotes_ETHUSD_20241119
["timestamp","ask_amount","ask_price","bid_price","bid_amount"]
[1732022958228,3.20502,3120.2,3119.7,0.55]
[1732022958471,0.03972962,3120.0,3119.7,0.55]
[1732022958767,3.20502,3120.2,3119.7,0.55]
[1732022958768,0.03971578,3119.9,3119.7,0.55]
[1732022958954,3.20502,3120.2,3119.7,0.55]
[1732022959261,3.20512,3120.0,3119.6,0.55]
[1732022959417,0.6989,3119.9,3119.6,0.55]
[1732022959617,0.73861578,3119.9,3119.6,1.225572]
[1732022960044,0.73861578,3119.9,3119.6,0.55]
[1732022961371,0.03971578,3119.9,3119.7,3.0]
[1732022961573,3.20504,3120.1,3119.8,0.55]
[1732022961735,0.03969081,3120.0,3119.8,0.55]
[1732022962048,0.03969081,3120.0,3119.6,0.55]
[1732022962049,3.24483081,3120.0,3119.6,0.55]
[1732022963338,0.03969081,3120.0,3119.6,3.75551]
[1732022963683,3.20503,3120.1,3119.6,4.751617]
[1732022963886,3.20518,3120.0,3119.6,0.55]
[1732022964040,3.2438734,3120.0,3119.6,0.55]
[1732022964445,0.0386934,3120.0,3119.6,0.55]
[1732022964749,0.6989,3120.2,3119.8,0.55]
[1732022964947,0.03870012,3120.1,3119.8,0.55]
[1732022965349,3.24373012,3120.1,3119.8,0.55]
[1732022965540,3.24373012,3120.1,3119.6,3.20552]
[1732022965541,0.03870012,3120.1,3119.6,3.20552]
[1732022965743,3.24372012,3120.1,3119.7,0.55]
[1732022965968,0.03870012,3120.1,3119.7,0.55]
[1732022966175,0.03870012,3120.1,3119.6,0.55]
[1732022966378,3.20534,3119.8,3119.3,3.7992]
[1732022966549,3.20534,3119.8,3119.3,7.00502]
[1732022966550,0.03867064,3119.7,3119.3,7.00502]
[1732022966743,3.20534,3119.8,3119.4,1.341679]
[1732022966944,0.03867064,3119.7,3119.4,1.341679]
[1732022967153,3.20534,3119.8,3119.3,7.00502]
[1732022967352,0.03867064,3119.7,3119.3,7.00502]
[1732022967557,3.20534,3119.8,3119.4,0.55]
[1732022967771,0.03867064,3119.7,3119.4,0.55]
[1732022967982,3.90444,3119.6,3119.1,0.55]
[1732022968141,3.90444,3119.6,3119.1,6.75595]
[1732022968142,0.03864944,3119.5,3119.1,6.75595]
[1732022968342,0.03864944,3119.5,3119.1,7.89938674]
[1732022968747,0.03864944,3119.5,3119.3,3.55]
[1732022969046,0.03864944,3119.5,3119.4,6.75574]
[1732022969448,0.6989,3120.0,3119.5,6.75555]
[1732022969671,3.20529,3119.9,3119.5,0.55]
[1732022969865,3.90404,3120.0,3119.4,3.75567]
[1732022970066,3.90404,3120.0,3119.6,0.55]
[1732022970753,0.6989,3120.0,3119.6,0.55]
[1732022970952,0.6989,3120.0,3119.6,3.75551]
[1732022971862,3.90374,3120.3,3119.6,3.75551]
[1732022972238,3.20504,3120.1,3119.6,3.75551]
[1732022972499,3.20497,3120.2,3119.6,3.75547]
[1732022972846,3.20497,3120.2,3119.6,0.55]
[1732022973093,3.20497,3120.2,3119.6,3.75549]
[1732022973247,0.6989,3120.3,3119.6,3.75549]
[1732022973448,3.20509,3120.1,3119.6,3.75549]
[1732022973648,3.20509,3120.1,3119.6,0.55]
[1732022973649,3.20512,3120.0,3119.6,0.55]
[1732022974091,3.20492,3120.2,3119.6,0.55]
[1732022974290,3.595302,3120.2,3119.6,0.55]
[1732022974500,3.20519,3120.0,3119.6,0.55]
[1732022975291,0.6989,3120.3,3119.6,0.55]
[1732022975498,0.6989,3120.3,3119.5,3.20561]
[1732022975787,0.6989,3120.3,3119.7,3.7554]
[1732022976016,0.6989,3120.3,3119.8,3.20527]
[1732022976584,0.6989,3120.5,3119.9,3.20521]
[1732022976759,3.20479,3120.4,3119.9,3.20521]
[1732022976966,6.40958,3120.4,3119.9,3.20521]
[1732022977145,3.20483,3120.3,3119.7,7.77651]
[1732022977349,3.20483,3120.3,3119.8,3.2053]
[1732022977545,3.20479,3120.4,3119.7,1.3658]
[1732022977546,3.20492,3120.2,3119.7,1.3658]
[1732022977791,3.20478,3120.4,3119.8,3.20531]
[1732022977960,3.595149,3120.4,3119.8,3.20531]
[1732022978152,3.20487,3120.3,3119.8,3.20531]
[1732022978474,3.595149,3120.4,3119.8,3.20531]
[1732022978676,3.20485,3120.3,3119.8,3.20531]
[1732022978881,3.20478,3120.4,3119.9,3.20516]
[1732022979252,3.20478,3120.4,3119.8,3.20531]
[1732022979253,0.6989,3120.5,3120.0,3.75511]
[1732022979652,0.6989,3120.5,3120.1,3.20499]
[1732022979895,0.6989,3120.5,3120.2,3.20482]
[1732022980194,3.2043,3120.9,3120.4,3.75465]
[1732022980400,0.03875362,3120.8,3120.4,3.75465]
[1732022980693,0.03875362,3120.8,3120.5,3.20461]
[1732022981099,3.20421,3120.9,3120.4,0.55]
[1732022981299,0.03746549,3120.7,3120.4,0.55]
[1732022981455,3.24178285,3120.8,3120.4,0.55]
[1732022981660,0.03745812,3120.6,3120.4,0.55]
[1732022981916,3.20431,3120.8,3120.4,0.55]
[1732022982368,3.20431,3120.8,3119.9,3.20518]
[1732022982369,3.20451,3120.6,3119.9,3.20518]
[1732022982697,0.3903,3120.9,3119.3,3.7779]
[1732022982698,0.73635076,3120.5,3119.3,3.7779]
[1732022982898,3.20508,3120.1,3119.6,3.0]
[1732022983055,0.6989,3120.0,3119.6,6.20551]
[1732022983260,3.20531,3119.9,3119.4,3.0]
[1732022983571,0.03742573,3119.8,3119.4,3.0]
[1732022983982,0.03742573,3119.8,3119.3,3.9837]
[1732022983983,0.6989,3120.0,3119.6,3.0]
[1732022984301,0.03742209,3119.9,3119.6,3.0]
[1732022984957,0.03742209,3119.9,3119.7,0.55]
[1732022985262,0.03742209,3119.9,3119.8,4.51633]
[1732022985456,0.03742209,3119.9,3119.8,4.527506]
[1732022985686,3.20478,3120.4,3119.9,0.55]
[1732022985894,3.90345,3120.6,3120.0,3.20512]
[1732022986171,3.20464,3120.5,3120.0,3.20506]
[1732022986372,3.20464,3120.5,3120.0,6.41012]
[1732022986601,3.20464,3120.5,3120.0,3.20506]
[1732022986990,3.20462,3120.5,3120.0,3.20504]
[1732022987361,3.20471,3120.4,3120.0,3.20504]
[1732022987670,3.20482,3120.3,3119.9,0.55]
[1732022987866,3.20482,3120.3,3119.3,3.20583]
[1732022987867,3.20581,3119.4,3118.9,0.8141]
[1732022988069,3.20581,3119.4,3118.8,3.20634]
[1732022988070,3.20575,3119.4,3118.8,3.20633]
[1732022988323,3.20553,3119.6,3118.6,0.8141]
[1732022988324,3.20562,3119.6,3118.7,3.20646]
[1732022988467,0.6989,3119.7,3118.1,0.01]
[1732022988468,0.6989,3119.7,3118.8,1.216156]
[1732022988675,3.20518,3120.0,3119.1,3.20604]
[1732022988676,3.90408,3120.0,3119.1,3.20604]
[1732022988981,3.20539,3119.8,3119.2,3.20593]
[1732022989928,3.20539,3119.8,3119.3,0.55]
[1732022990991,3.20539,3119.8,3119.2,0.55]
[1732022991185,3.20554,3119.6,3119.2,0.55]
[1732022991378,3.20554,3119.6,3119.0,0.55]
[1732022991617,3.20539,3119.8,3119.2,3.75593]
[1732022991813,3.20539,3119.8,3119.2,0.55]
[1732022992113,0.6989,3119.6,3118.9,6.20621]
[1732022992324,3.20565,3119.5,3118.9,6.20621]
[1732022992685,0.03730049,3119.4,3118.9,6.20617]
[1732022993023,0.03730049,3119.4,3119.0,3.20613]
[1732022993591,0.03730049,3119.4,3119.1,0.55]
[1732022994088,0.03730049,3119.4,3119.3,3.20584]
[1732022994275,0.03730049,3119.4,3119.3,3.75584]
[1732022994480,0.6989,3119.9,3119.4,0.55]
[1732022994782,0.6989,3119.9,3119.4,4.922864]
[1732022995016,0.6989,3119.9,3119.6,0.55]
[1732022995351,0.03732544,3119.8,3119.5,0.55]
[1732022995855,0.03732544,3119.8,3119.5,3.75562]
[1732022996056,0.03732544,3119.8,3119.6,3.20551]
[1732022996212,0.03732544,3119.8,3119.5,3.75562]
[1732022996414,3.20492,3120.2,3119.7,3.20543]
[1732022996722,3.20492,3120.2,3119.8,0.55]
[1732022996723,0.03735854,3120.1,3119.8,0.55]
[1732022997335,0.03735854,3120.1,3119.8,3.75532]
[1732022997748,3.90376,3120.3,3119.8,3.75532]
[1732022998261,3.24234784,3120.2,3119.7,0.55]
[1732022999054,3.24234784,3120.2,3119.6,3.20545]
[1732022999055,3.20513,3120.0,3119.5,3.55]
[1732022999460,0.03734574,3119.9,3119.5,6.75562]
[1732022999833,3.20504,3120.1,3119.5,6.75562]
[1732023000152,1.10083382,3120.3,3119.5,0.55]
[1732023000153,0.03736801,3120.0,3119.5,0.55]
[1732023000351,0.6989,3119.7,3119.3,3.0]
[1732023000725,3.20539,3119.8,3119.3,3.0]
[1732023000933,3.20602,3119.2,3118.5,3.20659]
[1732023001124,2.88188819,3119.0,3118.2,0.7754]
[1732023001319,1.019502,3119.1,3118.2,0.7754]
[1732023001536,3.20622,3119.0,3118.3,3.22955629]
[1732023001717,3.20637,3118.8,3118.2,0.7754]
[1732023002063,3.20657,3118.6,3118.0,3.20716]
[1732023002280,0.6989,3118.8,3117.9,0.7585]
[1732023002563,0.6989,3118.8,3118.0,3.0]
[1732023002564,3.20668,3118.5,3118.0,3.0]
[1732023002729,1.37760382,3118.8,3117.5,0.8135]
[1732023002730,0.6989,3118.8,3117.5,0.8135]
[1732023002936,3.90595,3118.2,3117.5,0.8135]
[1732023003272,3.2072,3118.0,3117.5,0.8135]
[1732023003482,3.2072,3118.0,3117.1,3.20808]
[1732023003483,3.20745,3117.8,3117.2,0.7516]
[1732023003622,0.6989,3118.2,3117.2,0.7516]
[1732023003813,3.20735,3117.9,3117.2,0.7516]
[1732023004020,2.89188819,3117.6,3116.2,0.7623]
[1732023004269,3.0,3117.9,3115.5,3.20975]
[1732023004270,3.20861,3116.7,3115.5,3.20975]
[1732023004418,2.88188819,3116.8,3115.8,3.20943]
[1732023004613,6.09037819,3116.8,3115.9,0.320943]
[1732023004847,6.09037819,3116.8,3115.8,3.20943]
[1732023004848,3.20871,3116.6,3115.8,3.20943]
[1732023005026,3.20871,3116.6,3115.6,3.20964]
[1732023005027,1.34244468,3117.1,3115.4,0.7623]
[1732023005341,6.41652,3117.0,3115.6,3.20965]
[1732023005539,3.20832,3116.9,3116.1,3.20911]
[1732023005835,0.6989,3117.1,3115.9,3.0]
[1732023006028,0.6989,3117.1,3116.3,3.20892]
[1732023006228,3.90705,3117.1,3116.3,3.15262]
[1732023006458,0.6989,3117.1,3116.4,3.2088]
[1732023006667,0.6989,3117.1,3116.5,0.55]
[1732023006963,3.9071,3117.1,3116.3,0.55]
[1732023007162,4.618611,3117.1,3116.2,3.55]
[1732023007313,0.6989,3116.5,3115.4,3.20984]
[1732023007518,3.20923,3116.1,3115.0,3.21024]
[1732023007762,0.6989,3115.9,3115.1,0.397144]
[1732023008061,0.6989,3115.9,3114.9,0.7612]
[1732023008062,3.58078819,3115.9,3114.4,0.7626]
[1732023008367,3.58078819,3115.9,3114.2,3.21101]
[1732023008368,3.21027,3115.0,3114.2,3.21101]
[1732023008860,0.6989,3115.1,3114.1,3.21117]
[1732023008861,3.21038,3114.9,3114.1,3.21117]
[1732023009076,0.6989,3115.1,3114.1,0.5188104]
[1732023009359,3.21058,3114.7,3114.1,0.5188104]
[1732023009766,3.21038,3114.9,3114.1,0.5188104]
[1732023009767,3.21041,3114.9,3114.2,0.17045644]
[1732023010032,0.6989,3115.1,3114.5,3.21071]
[1732023010187,0.6989,3115.5,3114.6,0.321071]
[1732023010391,0.6989,3115.5,3114.4,0.7818]
[1732023010392,0.6989,3115.5,3114.7,3.21057]
[1732023010609,0.6989,3115.5,3114.4,3.99266]
[1732023010610,0.6989,3115.5,3115.0,3.21017]
[1732023010789,0.6989,3115.5,3115.1,3.21014]
[1732023010989,0.6989,3115.5,3114.1,3.01]
[1732023011211,0.6989,3115.5,3115.0,3.76022]
[1732023011503,0.6989,3116.3,3115.9,3.20934]
[1732023011674,0.6989,3116.3,3116.1,3.20912]
[1732023011872,3.7996952,3117.3,3116.3,0.55]
[1732023011873,0.6989,3116.8,3116.3,0.55]
[1732023012402,0.6989,3116.8,3116.7,3.20852]
[1732023012794,3.85089363,3117.4,3116.5,3.20871]
[1732023012995,0.64300363,3117.4,3116.5,3.20871]
[1732023013178,0.64300363,3117.4,3116.6,3.20861]
[1732023013387,0.64300363,3117.4,3116.3,0.55]
[1732023013594,0.6989,3117.5,3117.0,3.20811]
[1732023013798,0.6989,3117.5,3116.4,3.20883]
[1732023013799,0.6989,3117.5,3116.5,0.55]
[1732023014147,3.20798,3117.3,3116.0,0.7547]
[1732023014429,0.320798,3117.2,3116.1,0.55]
[1732023014634,3.9166,3117.5,3116.7,3.2085]
[1732023014785,0.39166,3117.4,3116.7,3.2085]
[1732023014977,0.39166,3117.4,3116.8,3.20836]
[1732023015178,0.39166,3117.4,3116.1,3.75906]
[1732023015179,0.6989,3117.5,3117.0,3.2082]
[1732023015427,0.6989,3117.5,3117.1,3.20811]
[1732023015825,0.03534417,3117.4,3117.3,3.20785]
[1732023016228,0.03534417,3117.4,3117.1,3.20811]
[1732023016229,3.90598,3118.1,3117.5,3.20769]
[1732023016536,0.41952845,3118.0,3117.5,3.20769]
[1732023016837,0.41952845,3118.0,3117.6,3.20751]
[1732023016983,0.03539751,3118.0,3117.6,3.20751]
[1732023017179,0.03539751,3118.0,3116.7,3.7941]
[1732023017397,0.03539751,3118.0,3117.8,3.20737]
[1732023017627,0.03539751,3118.0,3117.7,3.20749]
[1732023017831,0.03539751,3118.0,3117.5,3.20764]
[1732023018731,0.03539751,3118.0,3117.4,0.55]
[1732023018906,0.03539751,3118.0,3117.8,3.20729]
[1732023019099,0.03539751,3118.0,3117.9,3.75728]
[1732023019342,0.6989,3118.6,3117.9,0.55]
[1732023019527,0.6989,3118.6,3118.5,3.20666]
[1732023019836,0.6989,3119.3,3118.2,3.75697]
[1732023019997,0.6989,3119.3,3118.8,3.20634]
[1732023020322,0.6989,3119.3,3118.7,3.20646]
[1732023020706,0.6989,3119.3,3119.1,3.20604]
[1732023020906,0.6989,3119.7,3118.6,0.55]
[1732023021143,0.6989,3120.2,3119.6,3.20553]
[1732023021312,0.6989,3120.2,3118.6,0.55]
[1732023021313,0.6989,3120.2,3119.7,3.20542]
[1732023021940,0.6989,3120.2,3119.8,3.20532]
[1732023022243,0.6989,3120.2,3119.6,3.20547]
[1732023022600,0.390373,3120.1,3119.6,3.20547]
[1732023022796,0.6989,3120.2,3119.8,3.20532]
[1732023023000,0.6989,3120.2,3118.6,4.513521]
[1732023023001,3.20567,3119.5,3118.6,0.55]
[1732023023200,3.20609,3119.1,3118.4,6.20676]
[1732023023436,3.20549,3119.7,3118.9,3.20625]
[1732023023437,0.03474066,3119.0,3118.9,3.20625]
[1732023023607,0.6989,3119.7,3118.9,3.20625]
[1732023023807,0.03478941,3119.6,3119.1,3.20598]
[1732023024224,0.6989,3119.7,3118.6,3.20651]
[1732023024423,0.6989,3119.7,3119.4,3.20567]
[1732023024642,0.03478941,3119.6,3119.4,3.20567]
[1732023025230,0.03478941,3119.6,3119.2,3.2059]
[1732023025455,0.6989,3120.2,3119.5,3.75564]
[1732023025605,0.6989,3120.2,3119.7,3.20536]
[1732023026231,3.90346,3120.6,3119.9,3.2052]
[1732023026436,0.6989,3120.6,3119.9,3.2052]
[1732023027144,0.6989,3120.6,3119.4,0.55]
[1732023027321,3.20521,3120.0,3119.4,0.55]
[1732023027658,3.20496,3120.2,3119.4,0.55]
[1732023027819,3.20519,3120.0,3119.4,3.7557]
[1732023028347,3.525546,3120.1,3118.9,0.7528]
[1732023028512,3.525546,3120.1,3119.4,3.75567]
[1732023028513,3.20505,3120.1,3119.4,3.75567]
[1732023028715,3.20505,3120.1,3119.5,3.20564]
[1732023028922,6.40973,3120.3,3119.5,3.20564]
[1732023029116,3.525504,3120.2,3119.5,3.20564]
[1732023029327,3.525504,3120.2,3119.2,3.55]
[1732023029328,3.20546,3119.7,3119.2,3.55]
[1732023029546,0.320546,3119.6,3119.2,0.55]
[1732023029952,3.526116,3119.6,3119.0,0.55]
[1732023030161,0.6731576,3119.5,3118.8,3.20627]
[1732023030316,3.20611,3119.1,3118.2,4.0097]
[1732023030517,0.320611,3119.0,3118.5,3.2066]
[1732023030930,0.320611,3119.0,3118.3,3.20687]
[1732023031273,3.20567,3119.5,3118.7,3.20638]
[1732023031274,3.20589,3119.3,3118.7,3.20638]
[1732023031453,0.320589,3119.2,3118.7,3.20638]
[1732023031821,3.20608,3119.1,3118.5,3.2066]
[1732023032022,0.320589,3119.2,3118.6,3.20656]
[1732023032222,0.3526479,3119.1,3118.6,3.20652]
[1732023032422,3.5587179,3119.1,3118.5,3.2066]
[1732023032677,3.5587179,3119.1,3118.3,3.20685]
[1732023032852,0.35587179,3119.0,3118.6,3.2065]
[1732023033035,3.20576,3119.4,3118.7,3.20644]
[1732023033364,3.20612,3119.1,3118.6,0.55]
[1732023033659,0.320612,3119.0,3118.6,0.55]
[1732023033966,3.20577,3119.4,3118.6,0.55]
[1732023033967,3.20577,3119.4,3118.6,3.20654]
[1732023034170,3.897004,3119.6,3119.0,3.20615]
[1732023034463,0.3897004,3119.5,3119.0,3.20615]
[1732023034672,0.3897004,3119.5,3118.3,3.20683]
[1732023034673,3.20593,3119.3,3118.6,3.20653]
[1732023034980,3.526593,3119.2,3118.7,0.55]
[1732023035258,3.526593,3119.2,3118.7,3.75646]
[1732023035756,0.320593,3119.2,3118.6,3.20655]
[1732023035986,3.20601,3119.2,3118.6,3.20655]
[1732023037028,3.20552,3119.7,3118.6,3.20655]
[1732023037029,3.20608,3119.1,3118.6,3.20655]
[1732023037420,3.90498,3119.1,3118.6,3.20655]
[1732023037654,3.20637,3118.8,3118.2,0.8028]
[1732023037834,3.20694,3118.3,3118.1,3.0]
[1732023038067,3.20694,3118.3,3117.8,0.7761]
[1732023038437,3.24056144,3118.2,3117.8,0.7761]
[1732023038739,3.24056144,3118.2,3117.0,0.8089]
[1732023038740,3.20733,3117.9,3117.0,0.8089]
[1732023039066,3.20755,3117.7,3117.0,4.01702]
[1732023039294,0.03347193,3117.8,3117.0,4.01702]
[1732023039295,0.03347193,3117.8,3117.0,0.8089]
[1732023039586,3.20769,3117.5,3116.8,3.20831]
[1732023039746,0.320769,3117.4,3116.8,3.20831]
[1732023039953,3.20803,3117.2,3116.6,3.20858]
[1732023040174,3.20803,3117.2,3116.5,0.7511]
[1732023040386,0.03223345,3117.1,3116.5,0.7511]
[1732023040699,3.20828,3117.0,3116.5,0.7511]
[1732023040997,3.24047237,3117.0,3116.5,0.7511]
[1732023041211,3.88532261,3117.0,3116.5,0.7511]
[1732023041571,3.20847,3116.8,3116.4,0.74989328]
[1732023041794,3.20857,3116.7,3116.1,0.785]
[1732023042107,0.03205749,3116.7,3116.1,0.785]
[1732023042263,3.20772,3117.5,3116.3,3.20893]
[1732023042483,0.03099218,3116.6,3116.4,3.20879]
[1732023042664,3.20818,3117.1,3116.4,3.20879]
[1732023042874,3.20838,3116.9,3116.2,3.20903]
[1732023043096,3.20838,3116.9,3116.1,0.785]
[1732023043097,3.20879,3116.5,3115.8,3.20936]
[1732023043831,3.20863,3116.6,3115.9,3.20924]
[1732023044308,0.6989,3117.0,3116.1,0.55]
[1732023044608,3.20919,3116.1,3115.4,3.20978]
[1732023044767,0.320919,3116.0,3115.4,3.20978]
[1732023045097,3.20888,3116.4,3115.8,3.20935]
[1732023045267,3.20888,3116.4,3115.7,3.20949]
[1732023045468,3.20895,3116.3,3115.7,3.20949]
[1732023045720,3.20914,3116.1,3115.5,3.20972]
[1732023046014,4.549723,3116.2,3115.6,3.0]
[1732023046316,3.90761,3116.6,3115.9,3.20932]
[1732023046521,4.298371,3116.6,3115.9,3.20932]
[1732023046683,1.089661,3116.6,3115.9,3.20932]
[1732023046870,3.20851,3116.8,3115.8,6.20941]
[1732023047216,3.20896,3116.3,3115.7,0.79]
[1732023047396,3.20884,3116.4,3115.8,0.55]
[1732023047710,3.20845,3116.8,3116.1,3.20907]
[1732023047711,3.20847,3116.8,3116.1,3.20907]
[1732023047875,0.320845,3116.8,3116.2,0.55]
[1732023048078,0.6989,3117.4,3116.6,0.55]
[1732023048271,3.20792,3117.3,3116.8,3.20841]
[1732023048503,0.02892492,3117.3,3116.8,3.20841]
[1732023048700,0.02892492,3117.3,3116.6,0.55]
[1732023048701,0.02892492,3117.3,3117.0,3.2082]
[1732023048923,0.02892492,3117.3,3117.2,3.758]
[1732023049218,3.7996952,3118.7,3117.2,3.758]
[1732023049219,3.20667,3118.5,3117.9,3.20722]
[1732023049371,3.90534,3118.8,3118.0,3.20716]
[1732023049566,3.90534,3118.8,3117.7,0.8241]
[1732023049567,0.02900607,3118.4,3117.7,4.03158]
[1732023049798,0.390534,3118.7,3117.3,0.8153]
[1732023049799,1.02069726,3118.7,3117.3,0.8153]
[1732023050001,3.2359387,3118.3,3117.4,0.55]
[1732023050231,3.20694,3118.3,3117.8,0.55]
[1732023050408,3.20709,3118.1,3117.8,0.55]
[1732023050625,3.20709,3118.1,3116.9,0.8153]
[1732023050626,3.2077,3117.5,3116.9,0.8153]
[1732023050808,0.0289323,3117.4,3116.9,0.8153]
[1732023051158,3.20798,3117.3,3116.7,3.20849]
[1732023051298,3.849554,3117.3,3116.7,3.20849]
[1732023051501,3.23694754,3117.2,3116.5,4.02396]
[1732023051957,0.02891754,3117.2,3116.7,3.20848]
[1732023052105,0.02891754,3117.2,3116.8,3.20839]
[1732023052451,3.20774,3117.5,3116.8,0.55]
[1732023052612,3.2367923,3117.4,3116.8,0.55]
[1732023052813,0.64445323,3117.3,3116.8,3.7584]
[1732023053019,0.02899351,3117.2,3116.9,3.20829]
[1732023053315,0.6989,3117.1,3115.8,0.7861]
[1732023053517,3.20829,3117.0,3116.5,0.55]
[1732023053828,3.20829,3117.0,3116.2,3.20899]
[1732023053829,3.20845,3116.8,3116.3,6.20892]
[1732023054031,0.02893957,3116.7,3116.3,6.20892]
[1732023054204,3.20845,3116.8,3116.0,3.20919]
[1732023054205,0.32373896,3116.6,3116.0,3.20919]
[1732023054404,0.0289248,3116.5,3115.8,3.99549]
[1732023054651,0.0289248,3116.5,3116.0,3.20918]
[1732023055496,3.2376648,3116.5,3116.0,3.20918]
[1732023055770,0.0289248,3116.5,3116.1,3.75904]
[1732023055932,0.0289248,3116.5,3116.2,3.20896]
[1732023056135,3.2079,3117.3,3116.6,3.2086]
[1732023056449,3.20791,3117.3,3116.7,3.20846]
[1732023056650,3.20816,3117.1,3116.5,3.2087]
[1732023056951,3.20816,3117.1,3116.7,3.20848]
[1732023056952,0.673686,3117.1,3116.7,3.20848]
[1732023057129,0.673686,3117.1,3116.0,3.0]
[1732023057130,3.2084,3116.9,3115.3,0.01]
[1732023057335,3.2084,3116.9,3116.3,3.20893]
[1732023057538,3.20813,3117.1,3116.4,3.75876]
[1732023057843,3.20827,3117.0,3116.4,0.55]
[1732023058058,3.529083,3117.0,3116.4,3.75882]
[1732023058236,0.320813,3117.0,3116.5,3.20865]
[1732023058663,3.20806,3117.2,3116.5,3.20865]
[1732023058982,3.20819,3117.1,3116.5,3.20872]
[1732023059162,3.529049,3117.0,3116.5,3.20872]
[1732023059470,3.20813,3117.1,3116.5,3.20872]
[1732023059647,6.41632,3117.1,3116.5,3.20872]
[1732023060032,3.20813,3117.1,3116.5,3.20872]
[1732023060229,0.320813,3117.0,3116.7,3.20844]
[1732023060541,0.65284029,3117.7,3117.1,3.20803]
[1732023060736,3.20679,3118.4,3116.6,0.55]
[1732023060737,3.207,3118.2,3117.6,3.20752]
[1732023061078,0.63972793,3118.1,3117.8,3.20736]
[1732023061235,0.6989,3118.8,3117.7,0.55]
[1732023061236,0.320679,3118.3,3117.7,0.55]
[1732023061438,3.20665,3118.6,3117.8,3.2073]
[1732023061651,0.34970791,3118.5,3118.0,3.20715]
[1732023061837,1.00008727,3118.5,3118.1,3.20707]
[1732023062160,0.67942227,3118.5,3117.7,0.55]
[1732023062356,0.67942227,3118.5,3117.2,3.20795]
[1732023062357,0.02904291,3118.5,3118.4,3.20677]
[1732023062825,0.6989,3119.2,3118.8,3.20631]
[1732023063117,0.6989,3119.2,3118.4,1.191365]
[1732023063118,3.20627,3118.9,3118.5,3.55]
[1732023063321,3.20612,3119.1,3118.6,3.0]
[1732023063618,3.526792,3119.0,3118.5,3.55]
[1732023063822,3.20618,3119.0,3118.5,3.55]
[1732023064834,3.20618,3119.0,3118.5,0.55]
[1732023065421,0.63484327,3119.7,3118.1,0.55]
[1732023065422,3.20659,3118.6,3118.1,0.55]
[1732023065602,3.526918,3118.9,3118.1,0.55]
[1732023065923,3.526918,3118.9,3118.4,0.55]
[1732023065924,3.2063,3118.9,3118.4,0.55]
[1732023066126,3.20586,3119.3,3118.4,0.55]
[1732023066332,3.20576,3119.4,3118.9,3.20623]
[1732023066525,3.20562,3119.6,3119.0,3.75605]
[1732023066693,0.390452,3119.5,3119.0,0.55]
[1732023066881,3.20537,3119.8,3119.0,0.55]
[1732023066882,3.2055,3119.7,3119.0,0.55]
[1732023067221,3.20537,3119.8,3119.1,3.20604]
[1732023067518,0.320537,3119.7,3119.1,3.20604]
[1732023067715,0.320537,3119.7,3119.2,0.55]
[1732023067930,0.420192,3120.0,3119.5,3.20555]
[1732023068122,0.02925624,3119.6,3119.5,3.75555]
[1732023068421,3.20493,3120.2,3119.6,3.2055]
[1732023068721,0.34978608,3120.1,3118.8,3.7818]
[1732023068905,0.02929308,3120.1,3119.4,3.20571]
[1732023069096,0.02929308,3120.1,3118.8,3.98812]
[1732023069305,3.2057,3119.5,3118.8,3.98809]
[1732023069508,3.20586,3119.3,3118.4,7.03133]
[1732023069721,3.20586,3119.3,3118.7,3.0]
[1732023070019,3.20586,3119.3,3118.4,0.8246]
[1732023070020,0.55,3119.1,3118.4,0.8246]
[1732023070236,0.55,3119.1,3118.0,4.03173]
[1732023070237,3.20663,3118.6,3118.0,4.03173]
[1732023070419,3.20679,3118.4,3117.6,4.03217]
[1732023070624,0.02927675,3119.0,3116.9,0.01]
[1732023070625,3.20714,3118.1,3117.4,3.20777]
[1732023070839,3.20705,3118.2,3117.4,3.20777]
[1732023070840,3.20721,3118.0,3117.4,3.20777]
[1732023071137,3.20721,3118.0,3117.2,3.20795]
[1732023071138,3.20741,3117.8,3117.0,3.20814]
[1732023071309,3.20757,3117.7,3117.1,3.2081]
[1732023071641,3.20781,3117.4,3116.9,0.8049]
[1732023071938,3.20801,3117.2,3116.6,3.20861]
[1732023072299,0.02913659,3117.1,3116.7,3.2085]
[1732023072633,0.02913659,3117.1,3116.4,4.01369]
[1732023072634,3.23724659,3117.1,3116.4,0.8049]
[1732023072835,3.20821,3117.0,3116.5,3.20868]
[1732023073130,0.02912183,3116.9,3116.6,3.20853]
[1732023073333,0.55,3117.1,3116.4,0.8049]
[1732023073539,0.55,3117.1,3116.0,3.20924]
[1732023073540,0.02895025,3116.8,3116.0,3.20924]
[1732023073830,0.55,3117.1,3116.3,3.20891]
[1732023073831,3.75817,3117.1,3116.3,3.20891]
[1732023074055,3.75817,3117.1,3115.9,0.8222]
[1732023074056,0.02894287,3116.7,3115.9,0.8222]
[1732023074334,6.41662,3116.9,3115.8,3.20936]
[1732023074540,3.20881,3116.5,3115.8,3.851258]
[1732023074837,3.20879,3116.5,3115.5,0.8284]
[1732023075141,0.02892071,3116.4,3116.0,3.20922]
[1732023075343,3.20894,3116.3,3115.8,3.20939]
[1732023075643,0.02891333,3116.3,3115.8,3.20939]
[1732023076147,0.55,3116.6,3115.5,0.8284]
[1732023076148,0.02889219,3116.2,3116.1,3.20913]
[1732023076446,0.55,3116.6,3115.9,3.20926]
[1732023076755,3.20884,3116.4,3115.8,3.20942]
[1732023076956,3.93655976,3116.5,3115.8,3.20942]